[Event "CHN-chW 2019"]
[Site "Xinghua"]
[Date "2019.05.18"]
[Round "7.11"]
[White "Chu, Ruotong"]
[Black "Ning, Kaiyu"]
[Result "1-0"]
[ECO "A09"]
[WhiteElo "2180"]
[BlackElo "2256"]
[Annotator "NA RC"]
[PlyCount "157"]
[EventDate "2019.05.11"]
[EventType "tourn"]
[EventCountry "CHN"]
[SourceTitle "playchess.com"]
[Source "ChessBase"]
[SourceQuality "1"]
[TimeControl "5400+30"]

{[%evp 14,149,-12,32767,32767,32767,32767,32767,32767,32767,32767,32767,32767,32767,32767,32767,32767,32767,32767,32767,32767,32767,32767,32767,32767,45,32767,32767,32767,32767,32767,32767,32767,18,35,32767,26,23,32767,43,67,87,72,60,32767,93,79,32767,32767,32767,32767,32767,104,32767,92,104,110,115,122,111,32767,108,147,121,134,160,167,180,164,180,162,185,155,32767,32767,210,169,160,227,177,164,32767,163,181,32767,32767,32767,32767,32767,32767,32767,32767,32767,322,305,319,356,32767,327,256,459,32767,32767,81,439,279,272,295,384,332,524,620,486,628,633,769,642,750,32767,819,855,1038,891,1884,830,32767,32767,32767,32767,32767,32767,32767,32767,32767,2497,29979,5077,29982]} 1. Nf3 {[%emt 0:00:00]} d5 {[%emt 0:00:00]} 2. c4 {[%emt 0:00:00]} d4 {[%emt 0:00:00]} 3. e3 {[%emt 0:03:15]} Nc6 {[%emt 0:00:08]} 4. exd4 {[%emt 0:02:26]} Nxd4 {[%emt 0:00:07]} 5. Nxd4 {[%emt 0:00:09]} Qxd4 {[%emt 0:00:04]} 6. Nc3 {[%emt 0:01:44]} c6 {[%emt 0:01:49]} 7. d3 {[%emt 0:00:22]} Nh6 {[%emt 0:08:59] A09: Réti Opening: 1 Nf3 d5 2 c4} 8. Be3 {[%emt 0:10:29]} Qd8 {[%emt 0:00:07]} 9. d4 {[%emt 0:02:12]} Nf5 {[%emt 0:00:46]} 10. Be2 {[%emt 0:03:09]} g6 {[%emt 0:01:39]} 11. Qd2 {[%emt 0:02:58]} Bg7 {[%emt 0:02:54]} 12. O-O-O {[%emt 0:08:00]} Qc7 $146 {[%emt 0:28:09]} ({Predecessor:} 12... O-O 13. h4 c5 14. dxc5 Qa5 15. h5 {0-1 (24) Dzhakaev,D (2478)-Navara,D (2722) Pardubice 2011}) 13. Bf4 {[%emt 0:07:23]} Qa5 {[%emt 0:02:18]} 14. Be5 {[%emt 0:00:40]} f6 {[%emt 0:08:16]} 15. Bf4 {[%emt 0:00:59]} O-O {[%emt 0:01:39]} 16. d5 {[%emt 0:03:02]} c5 {[%emt 0:19:18]} 17. Kb1 {[%emt 0:06:34]} Nd4 {[%emt 0:03:31]} 18. Bd3 {[%emt 0:01:19]} e5 {[%emt 0:04:35]} 19. dxe6 {[%emt 0:10:03]} Bxe6 {[%emt 0:01:32]} 20. Ne2 {[%emt 0:01:06]} Qxd2 {[%emt 0:05:39]} 21. Rxd2 {[%emt 0:00:12]} Rad8 {[%emt 0:00:46]} 22. Nxd4 {[%emt 0:01:39]} cxd4 {[%emt 0:00:42]} 23. Re1 {[%emt 0:02:41]} Kf7 {[%emt 0:00:46]} 24. Rde2 {[%emt 0:01:17]} Rfe8 {[%emt 0:00:17]} 25. h4 {[%emt 0:00:28]} Bd7 {[%emt 0:02:33]} 26. Rxe8 {[%emt 0:03:46]} Rxe8 {[%emt 0:00:01]} 27. Rxe8 {[%emt 0:02:26]} Kxe8 {[%emt 0:00:01]} 28. Be4 {[%emt 0:00:19]} Bc8 {[%emt 0:00:02]} 29. Kc2 {[%emt 0:00:09]} f5 {[%emt 0:02:12]} 30. Bd5 {[%emt 0:00:12]} d3+ {[%emt 0:01:44]} 31. Kc1 {[%emt 0:00:17]} Bf6 {[%emt 0:00:36]} 32. g3 {[%emt 0:00:11]} b6 {[%emt 0:00:22]} 33. b3 {[%emt 0:01:25]} Bc3 {[%emt 0:01:07]} 34. Bg2 {[%emt 0:00:30]} Ke7 {[%emt 0:00:55]} 35. Bd2 {[%emt 0:04:03]} Bd4 {[%emt 0:00:05]} 36. Be3 {[%emt 0:01:24]} Bc3 {[%emt 0:00:01]} 37. Bf1 {[%emt 0:00:23]} Ke6 {[%emt 0:00:33]} 38. Bxd3 {[%emt 0:00:13]} Bb7 {[%emt 0:00:06]} 39. a3 {[%emt 0:01:50]} Bc6 {[%emt 0:01:28]} 40. b4 {[%emt 0:02:19]} Bf6 {[%emt 0:00:01]} 41. b5 {[%emt 0:03:23]} Bb7 {[%emt 0:00:11]} 42. c5 {[%emt 0:00:23]} Be7 {[%emt 0:00:06]} 43. c6 {[%emt 0:00:50]} Bxa3+ {[%emt 0:00:13]} 44. Kc2 {[%emt 0:00:13]} Bc8 {[%emt 0:00:02]} 45. Bc4+ {[%emt 0:00:10]} Ke7 {[%emt 0:02:10]} 46. Bg5+ {[%emt 0:00:10]} Ke8 {[%emt 0:00:47]} 47. Kd3 {[%emt 0:01:23]} Bc5 {[%emt 0:00:35]} 48. Ke2 {[%emt 0:02:39]} Bf8 {[%emt 0:01:06]} 49. Bf4 {[%emt 0:00:41]} h6 {[%emt 0:00:44]} 50. Bb8 {[%emt 0:00:16]} Kd8 {[%emt 0:00:01]} 51. Bf4 {[%emt 0:01:49]} Ke7 {[%emt 0:00:03]} 52. Be5 {[%emt 0:00:19]} g5 {[%emt 0:00:25]} 53. Kd3 {[%emt 0:04:52]} Ke8 {[%emt 0:00:25]} 54. Bb8 {[%emt 0:00:47]} Kd8 {[%emt 0:00:30]} 55. Be5 $2 {[%emt 0:08:01]} ({Less strong is} 55. Bxa7 Kc7 $16) (55. h5 $18) 55... Ke8 $1 {[%emt 0:04:24]} 56. f3 {[%emt 0:00:00]} Bc5 $2 {[%emt 0:00:00]} (56... gxh4 {was called for.} 57. gxh4 h5) 57. Bg7 {[%emt 0:00:00]} f4 {[%emt 0:00:00] [#]} 58. Be5 $1 {[%emt 0:00:00]} Bf2 $2 {[%emt 0:00:00]} (58... fxg3 $16 {is tougher.} 59. Bxg3 Bf5+ 60. Kd2 Bb4+ 61. Ke2 Kd8) 59. g4 $2 {[%emt 0:00:00]} (59. hxg5 hxg5 60. gxf4 Bf5+ 61. Kc3 gxf4 62. Bxf4) 59... gxh4 {[%emt 0:00:00]} 60. Bxf4 {[%emt 0:00:00]} Bg1 {[%emt 0:00:00]} 61. Ke2 {[%emt 0:00:00]} Ke7 {[%emt 0:00:05]} (61... h5 $142 62. gxh5 h3) 62. Kf1 {[%emt 0:00:22]} Bd4 {[%emt 0:00:02]} 63. Kg2 {[%emt 0:00:29]} Bf6 {[%emt 0:01:40]} 64. Bxh6 {[%emt 0:00:32]} Kd6 {[%emt 0:00:07]} 65. Bd3 {[%emt 0:01:27]} Be6 {[%emt 0:00:26]} 66. Kh3 {[%emt 0:00:18]} Kc7 {[%emt 0:01:01]} 67. Bf4+ {[%emt 0:00:19]} Kc8 {[%emt 0:00:43]} 68. Bd6 {[%emt 0:00:09]} Kd8 {[%emt 0:00:48]} 69. f4 {[%emt 0:00:06]} Kc8 {[%emt 0:00:13]} 70. f5 {[%emt 0:00:14]} Bd5 {[%emt 0:00:26]} 71. Bf4 {[%emt 0:00:04]} a5 {[%emt 0:00:17]} 72. bxa6 {[%emt 0:00:12]} Bxc6 {[%emt 0:00:02]} 73. g5 {[%emt 0:00:07]} Bh8 {[%emt 0:00:54]} 74. f6 {[%emt 0:01:13]} Kd7 {[%emt 0:00:15]} 75. Be5 {[%emt 0:00:34]} Ke6 {[%emt 0:00:14]} 76. f7 {[%emt 0:00:05]} Kxf7 {[%emt 0:00:11]} 77. Bxh8 {[%emt 0:00:03]} b5 {[%emt 0:00:07]} 78. g6+ {[%emt 0:00:17]} Kg8 {[%emt 0:00:06]} 79. Bc3 {[%emt 0:00:13]} 1-0

[Event "CHN-chW 2019"]
[Site "Xinghua"]
[Date "2019.05.20"]
[Round "9.8"]
[White "Xiao, Yiyi"]
[Black "Zhu, Jiner"]
[Result "1/2-1/2"]
[ECO "A45"]
[WhiteElo "2290"]
[BlackElo "2439"]
[Annotator "ChessBase"]
[PlyCount "83"]
[EventDate "2019.05.11"]
[EventType "tourn"]
[EventCountry "CHN"]
[SourceTitle "playchess.com"]
[Source "ChessBase"]
[SourceQuality "1"]
[TimeControl "5400+30"]

1. d4 {[%emt 0:00:00]} Nf6 {[%emt 0:00:00]} 2. Bg5 {[%emt 0:00:05]} g6 {[%emt 0:01:11]} 3. Bxf6 {[%emt 0:00:14]} exf6 {[%emt 0:00:05]} 4. e3 {[%emt 0:00:06]} d5 {[%emt 0:00:13]} 5. g3 {[%emt 0:03:39]} Bg7 {[%emt 0:00:07]} 6. Bg2 {[%emt 0:00:05]} O-O {[%emt 0:00:19]} 7. Ne2 {[%emt 0:01:51]} c6 {[%emt 0:00:15]} 8. O-O {[%emt 0:01:21]} f5 {[%emt 0:00:34]} 9. c4 {[%emt 0:04:30]} dxc4 {[%emt 0:00:50]} 10. Na3 {[%emt 0:00:21]} Nd7 {[%emt 0:04:42]} 11. Nxc4 {[%emt 0:01:58]} Nb6 {[%emt 0:00:11]} 12. Na5 {[%emt 0:15:24]} Qe7 {[%emt 0:14:29]} 13. Qd2 {[%emt 0:06:33]} Be6 {[%emt 0:00:42]} 14. Nf4 {[%emt 0:00:28]} h5 {[%emt 0:06:49]} 15. h4 {[%emt 0:03:11]} Rad8 {[%emt 0:02:54]} 16. Qe2 {[%emt 0:11:28]} Nd5 {[%emt 0:02:20]} 17. Nxe6 {[%emt 0:01:41]} fxe6 {[%emt 0:00:05]} 18. Nc4 {[%emt 0:01:42]} e5 {[%emt 0:08:46]} 19. dxe5 {[%emt 0:01:14]} Bxe5 {[%emt 0:00:09]} 20. Nxe5 {[%emt 0:00:07]} Qxe5 {[%emt 0:00:04]} 21. Rad1 {[%emt 0:07:12]} Rd6 {[%emt 0:04:23]} 22. Rd2 {[%emt 0:10:13]} Rfd8 {[%emt 0:01:35]} 23. e4 {[%emt 0:03:00]} fxe4 {[%emt 0:07:01]} 24. Qxe4 {[%emt 0:00:13]} Qxe4 {[%emt 0:00:11]} 25. Bxe4 {[%emt 0:00:04]} Ne7 {[%emt 0:00:26]} 26. Re2 {[%emt 0:02:53]} Rd2 {[%emt 0:01:28]} 27. Rfe1 {[%emt 0:00:02]} Rxe2 {[%emt 0:00:14]} 28. Rxe2 {[%emt 0:00:01]} Rd4 {[%emt 0:02:26]} 29. Kf1 {[%emt 0:06:23]} Kf7 {[%emt 0:00:07]} 30. Ke1 {[%emt 0:00:20]} a5 {[%emt 0:01:06]} 31. Bc2 {[%emt 0:00:17]} Kf6 {[%emt 0:03:37]} 32. Rd2 {[%emt 0:07:17]} Ke5 {[%emt 0:00:28]} 33. Rxd4 {[%emt 0:01:33]} Kxd4 {[%emt 0:00:07]} 34. Ke2 {[%emt 0:00:02]} b5 {[%emt 0:12:39]} 35. Kf3 {[%emt 0:01:03]} Ke5 {[%emt 0:05:45]} 36. g4 {[%emt 0:02:32]} c5 {[%emt 0:01:51]} 37. Kg3 {[%emt 0:04:08]} c4 {[%emt 0:05:15]} 38. f4+ {[%emt 0:00:05]} Kf6 {[%emt 0:00:04]} 39. f5 {[%emt 0:01:23]} gxf5 {[%emt 0:01:26]} 40. gxh5 {[%emt 0:00:14]} Nd5 {[%emt 0:00:13]} 41. Kf3 {[%emt 0:00:39]} c3 {[%emt 0:00:33]} 42. bxc3 {[%emt 0:00:08]} 1/2-1/2

[Event "CHN-chW 2019"]
[Site "Xinghua"]
[Date "2019.05.20"]
[Round "9.10"]
[White "Chu, Ruotong"]
[Black "Huang, Qian"]
[Result "1/2-1/2"]
[ECO "E72"]
[WhiteElo "2180"]
[BlackElo "2440"]
[Annotator "RC"]
[PlyCount "62"]
[EventDate "2019.05.11"]
[EventType "tourn"]
[EventCountry "CHN"]
[SourceTitle "playchess.com"]
[Source "ChessBase"]
[SourceQuality "1"]
[TimeControl "5400+30"]

1. d4 {[%emt 0:00:00]} c5 {[%emt 0:01:01]} 2. d5 {[%emt 0:00:00]} e5 {[%emt 0:00:08]} 3. c4 {[%emt 0:00:17]} d6 {[%emt 0:00:10]} 4. e4 {[%emt 0:00:58]} g6 {[%emt 0:01:09]} 5. Nc3 {[%emt 0:00:08]} Bg7 {[%emt 0:00:05]} 6. g3 {[%emt 0:00:17]} Nf6 {[%emt 0:08:26]} 7. Bg2 {[%emt 0:00:17]} O-O {[%emt 0:00:05]} 8. Nge2 {[%emt 0:00:34]} Bd7 {[%emt 0:03:10]} 9. O-O {[%emt 0:05:36]} Qc8 {[%emt 0:00:10]} 10. f4 {[%emt 0:13:47]} Ne8 {[%emt 0:01:35]} 11. fxe5 {[%emt 0:10:08]} dxe5 {[%emt 0:04:00]} 12. Be3 {[%emt 0:03:57]} Nd6 {[%emt 0:01:35]} 13. b3 {[%emt 0:00:37]} b6 {[%emt 0:04:49]} 14. Qd2 {[%emt 0:03:09]} Bh3 {[%emt 0:02:04]} 15. Bh6 {[%emt 0:08:03]} Bxg2 {[%emt 0:05:31]} 16. Kxg2 {[%emt 0:00:08]} Nd7 {[%emt 0:00:30]} 17. a4 {[%emt 0:00:44]} a6 {[%emt 0:00:35]} 18. Nc1 {[%emt 0:15:17]} Bxh6 {[%emt 0:30:10]} 19. Qxh6 {[%emt 0:00:07]} b5 {[%emt 0:00:06]} 20. axb5 {[%emt 0:02:47]} axb5 {[%emt 0:00:10]} 21. Rxa8 {[%emt 0:00:07]} Qxa8 {[%emt 0:00:05]} 22. cxb5 {[%emt 0:00:11]} Qa5 {[%emt 0:00:15]} 23. Qe3 {[%emt 0:02:49]} Nxb5 {[%emt 0:09:48]} 24. Nxb5 {[%emt 0:00:07]} Qxb5 {[%emt 0:00:04]} 25. Qc3 {[%emt 0:05:59]} f6 {[%emt 0:04:40]} 26. Rf2 {[%emt 0:05:11]} Rb8 {[%emt 0:02:00]} 27. Rc2 {[%emt 0:00:29]} Kg7 {[%emt 0:01:55]} 28. g4 {[%emt 0:01:49]} h6 {[%emt 0:02:12]} 29. Nd3 {[%emt 0:00:46]} Qxb3 {[%emt 0:14:40]} 30. Qxb3 {[%emt 0:00:08]} Rxb3 {[%emt 0:00:04]} 31. Nxc5 {[%emt 0:00:07]} Nxc5 {[%emt 0:00:05]} 1/2-1/2

[Event "CHN-chW 2019"]
[Site "Xinghua"]
[Date "2019.05.22"]
[Round "11.7"]
[White "Xiao, Yiyi"]
[Black "Guo, Qi"]
[Result "1/2-1/2"]
[ECO "E04"]
[WhiteElo "2290"]
[BlackElo "2361"]
[Annotator "ChessBase"]
[PlyCount "61"]
[EventDate "2019.05.11"]
[EventType "tourn"]
[EventCountry "CHN"]
[SourceTitle "playchess.com"]
[Source "ChessBase"]
[SourceQuality "1"]
[TimeControl "5400+30"]

1. d4 {[%emt 0:00:00]} d5 {[%emt 0:00:00]} 2. Nf3 {[%emt 0:01:32]} Nf6 {[%emt 0:00:00]} 3. c4 {[%emt 0:01:09]} e6 {[%emt 0:00:00]} 4. g3 {[%emt 0:00:24]} dxc4 {[%emt 0:00:34]} 5. Bg2 {[%emt 0:00:13]} c5 {[%emt 0:00:13]} 6. O-O {[%emt 0:00:28]} Nc6 {[%emt 0:00:06]} 7. dxc5 {[%emt 0:13:10]} Qxd1 {[%emt 0:00:08]} 8. Rxd1 {[%emt 0:00:02]} Bxc5 {[%emt 0:00:08]} 9. Nbd2 {[%emt 0:00:08]} c3 {[%emt 0:00:06]} 10. bxc3 {[%emt 0:00:04]} O-O {[%emt 0:00:06]} 11. Nb3 {[%emt 0:00:17]} Be7 {[%emt 0:00:06]} 12. Nfd4 {[%emt 0:00:46]} Bd7 {[%emt 0:00:24]} 13. Bg5 {[%emt 0:05:20]} Rac8 {[%emt 0:00:52]} 14. Nb5 {[%emt 0:24:53]} Rfd8 {[%emt 0:02:53]} 15. Nd6 {[%emt 0:01:00]} Bxd6 {[%emt 0:00:31]} 16. Rxd6 {[%emt 0:00:21]} Be8 {[%emt 0:00:06]} 17. Rad1 {[%emt 0:00:46]} Rxd6 {[%emt 0:00:10]} 18. Rxd6 {[%emt 0:00:02]} b6 {[%emt 0:01:03]} 19. Bf4 {[%emt 0:10:02]} h6 {[%emt 0:07:33]} 20. Rd2 {[%emt 0:05:40]} Ng4 {[%emt 0:06:34]} 21. c4 {[%emt 0:05:37]} Nge5 {[%emt 0:00:50]} 22. c5 {[%emt 0:00:35]} bxc5 {[%emt 0:02:10]} 23. Nxc5 {[%emt 0:00:16]} g5 {[%emt 0:01:27]} 24. Bxc6 {[%emt 0:05:04]} Nxc6 {[%emt 0:28:54]} 25. Be3 {[%emt 0:00:29]} Rd8 {[%emt 0:06:14]} 26. Rxd8 {[%emt 0:00:29]} Nxd8 {[%emt 0:00:03]} 27. Ne4 {[%emt 0:01:02]} Bc6 {[%emt 0:01:22]} 28. Nd6 {[%emt 0:01:10]} a6 {[%emt 0:00:13]} 29. Bb6 {[%emt 0:01:01]} Nb7 {[%emt 0:00:09]} 30. Nxb7 {[%emt 0:00:36]} Bxb7 {[%emt 0:00:04]} 31. f3 {[%emt 0:00:31]} 1/2-1/2

[Event "CHN-chW 2019"]
[Site "Xinghua"]
[Date "2019.05.22"]
[Round "11.8"]
[White "Zhai, Mo"]
[Black "Ren, Xiaoyi"]
[Result "1-0"]
[ECO "E04"]
[WhiteElo "2365"]
[BlackElo "2261"]
[Annotator "ChessBase"]
[PlyCount "38"]
[EventDate "2019.05.11"]
[EventType "tourn"]
[EventCountry "CHN"]
[SourceTitle "playchess.com"]
[Source "ChessBase"]
[SourceQuality "1"]
[TimeControl "5400+30"]

1. c4 {[%emt 0:00:00]} Nf6 {[%emt 0:00:00]} 2. d4 {[%emt 0:00:00]} e6 {[%emt 0:00:00]} 3. Nc3 {[%emt 0:00:14]} Bb4 {[%emt 0:00:00]} 4. Nf3 {[%emt 0:05:03]} O-O {[%emt 0:00:22]} 5. g3 {[%emt 0:02:49]} d5 {[%emt 0:00:26]} 6. Bg2 {[%emt 0:02:29]} dxc4 {[%emt 0:05:30]} 7. O-O {[%emt 0:00:13]} Nc6 {[%emt 0:03:28]} 8. Bg5 {[%emt 0:02:43]} Rb8 {[%emt 0:04:57]} 9. e3 {[%emt 0:11:06]} Bxc3 {[%emt 0:10:27]} 10. bxc3 {[%emt 0:00:07]} Qd6 {[%emt 0:00:11]} 11. Bxf6 {[%emt 0:02:15]} gxf6 {[%emt 0:00:06]} 12. Nd2 {[%emt 0:00:08]} Na5 {[%emt 0:09:00]} 13. Ne4 {[%emt 0:22:03]} Qe7 {[%emt 0:01:26]} 14. Qg4+ {[%emt 0:00:36]} Kh8 {[%emt 0:00:09]} 15. Qh4 {[%emt 0:00:13]} Kg7 {[%emt 0:00:07]} 16. g4 {[%emt 0:00:28]} Rg8 {[%emt 0:17:32]} 17. Ng3 {[%emt 0:01:04]} Nc6 {[%emt 0:09:43]} 18. Nh5+ {[%emt 0:06:15]} Kf8 {[%emt 0:02:42]} 19. Nxf6 {[%emt 0:00:46]} Rh8 {[%emt 0:02:12]} 1-0